bitfinex-derivatives/quotes_BTCF0:USTF0_20240824
["timestamp","ask_amount","ask_price","bid_price","bid_amount"]
[1724536730720,0.078613,63605.0,63604.0,0.00023588]
[1724536731224,0.550293,63605.0,63604.0,0.00023588]
[1724536731720,0.950293,63605.0,63604.0,0.00023588]
[1724536734324,0.078579,63600.0,63590.0,0.078591]
[1724536734515,0.078579,63600.0,63584.0,0.0001494]
[1724536734516,0.3608,63596.0,63588.0,0.06230407]
[1724536734826,0.3608,63596.0,63587.0,0.06230407]
[1724536735323,0.3608,63596.0,63588.0,0.06230407]
[1724536735619,0.3608,63590.0,63588.0,0.06230407]
[1724536735821,0.3608,63590.0,63586.0,0.0567]
[1724536736513,0.3608,63590.0,63585.0,0.11993995]
[1724536736514,4e-05,63587.0,63585.0,0.00023588]
[1724536737314,4e-05,63586.0,63585.0,0.00023588]
[1724536741029,0.87184,63586.0,63585.0,0.00023588]
[1724536741327,0.47184,63586.0,63585.0,0.00023588]
[1724536741713,4e-05,63586.0,63585.0,0.00023588]
[1724536744525,4e-05,63586.0,63585.0,0.05233588]
[1724536746023,4e-05,63586.0,63585.0,0.00023588]
[1724536748327,0.00023588,63598.0,63592.0,0.078588]
[1724536748524,0.00023588,63598.0,63597.0,0.3608]
[1724536749628,0.3608,63613.0,63606.0,0.078571]
[1724536749929,0.3608,63613.0,63604.0,0.3608]
[1724536750120,0.3608,63606.0,63601.0,0.078577]
[1724536751023,0.3608,63606.0,63603.0,0.078574]
[1724536751316,0.00023588,63610.0,63603.0,0.439374]
[1724536751722,0.00023588,63610.0,63606.0,0.078571]
[1724536751925,0.00023588,63610.0,63603.0,0.3608]
[1724536752127,0.00023588,63610.0,63609.0,0.3608]
[1724536752324,0.40718441,63628.0,63609.0,0.3608]
[1724536752325,0.3608,63628.0,63609.0,0.3608]
[1724536752523,0.3608,63628.0,63617.0,0.3608]
[1724536752719,0.3608,63628.0,63618.0,0.078555]
[1724536753828,0.439344,63628.0,63618.0,0.078555]
[1724536755930,0.00023588,63629.0,63623.0,0.43935]
[1724536756834,0.00023588,63629.0,63628.0,0.3608]
[1724536759436,0.3608,63640.0,63628.0,0.3608]
[1724536759437,0.35380001,63640.0,63628.0,0.3608]
[1724536759743,0.3608,63646.0,63644.0,0.078524]
[1724536759744,0.00088,63646.0,63644.0,0.078524]
[1724536760032,0.04638441,63649.0,63646.0,0.078521]
[1724536760235,0.04638441,63652.0,63650.0,0.078517]
[1724536760433,0.04638441,63655.0,63650.0,0.078517]
[1724536760636,0.04662009,63657.0,63654.0,0.3608]
[1724536760838,0.00023568,63657.0,63654.0,0.3608]
[1724536762035,0.00023568,63657.0,63655.0,0.078511]
[1724536763131,0.00023568,63657.0,63656.0,0.0539]
[1724536765433,0.00023568,63657.0,63656.0,0.92518]
[1724536765737,0.07848,63681.0,63666.0,0.078497]
[1724536766040,0.07848,63681.0,63671.0,0.3608]
[1724536766742,0.00023568,63682.0,63680.0,4e-05]
[1724536767447,0.00023568,63682.0,63681.0,4e-05]
[1724536771229,0.128675,63684.0,63681.0,4e-05]
[1724536771436,0.12761068,63684.0,63681.0,4e-05]
[1724536772240,0.12761068,63684.0,63683.0,4e-05]
[1724536773743,0.078483,63678.0,63671.0,0.5808]
[1724536773939,0.078484,63677.0,63671.0,0.5808]
[1724536774135,0.078484,63677.0,63670.0,0.00023568]
[1724536774136,0.07849,63672.0,63670.0,0.00023568]
[1724536774339,0.07849,63672.0,63657.0,0.3608]
[1724536774340,0.078496,63667.0,63657.0,0.3608]
[1724536774543,0.0534,63666.0,63657.0,0.3608]
[1724536774938,0.0534,63666.0,63657.0,0.439308]
[1724536775133,4e-05,63658.0,63657.0,0.439308]
[1724536775334,4e-05,63658.0,63657.0,0.3608]
[1724536776855,0.078508,63657.0,63651.0,0.22023568]
[1724536777050,0.07851,63656.0,63651.0,0.00023568]
[1724536777243,0.078511,63655.0,63651.0,0.00023568]
[1724536777741,4e-05,63652.0,63651.0,0.00023568]
[1724536778741,0.36084,63652.0,63651.0,0.00023568]
[1724536781057,4e-05,63652.0,63651.0,0.00023568]
[1724536781245,4e-05,63652.0,63651.0,0.22023568]
[1724536781948,4e-05,63652.0,63651.0,0.58103568]
[1724536783550,4e-05,63652.0,63651.0,0.36103568]
[1724536785249,4e-05,63652.0,63651.0,0.00023568]
[1724536789956,0.078555,63652.0,63651.0,0.00023568]
[1724536796566,0.949875,63652.0,63651.0,0.00023568]
[1724536800162,0.87136,63652.0,63638.0,0.04685871]
[1724536800355,0.078527,63642.0,63634.0,0.04685871]
[1724536800555,0.3608,63637.0,63631.0,0.04685871]
[1724536800758,0.078538,63633.0,63630.0,0.04685871]
[1724536800957,0.078541,63631.0,63629.0,0.0514]
[1724536801161,0.3608,63630.0,63623.0,0.03013738]
[1724536801359,0.07855,63623.0,63622.0,0.07624142]
[1724536801562,0.04638441,63623.0,63607.0,0.04693406]
[1724536801760,0.439361,63615.0,63605.0,0.3608]
[1724536802064,0.078562,63614.0,63605.0,0.3608]
[1724536802266,0.00013137,63613.0,63605.0,0.3608]
[1724536802458,4e-05,63606.0,63605.0,0.3608]
[1724536802655,0.3618,63624.0,63605.0,1.62228]
[1724536802656,0.00023568,63616.0,63605.0,1.62228]
[1724536802861,0.3608,63624.0,63615.0,0.3608]
[1724536803061,0.078566,63611.0,63609.0,0.04685609]
[1724536803270,0.078566,63611.0,63607.0,0.04685609]
[1724536803459,0.078566,63611.0,63605.0,0.36168]
[1724536803664,0.078567,63610.0,63605.0,0.3608]
[1724536804165,0.3608,63612.0,63605.0,0.3608]
[1724536804373,0.078571,63607.0,63605.0,0.3608]
[1724536804570,0.078572,63606.0,63603.0,0.00023568]
[1724536804758,0.3608,63612.0,63603.0,0.00023568]
[1724536804759,0.078573,63605.0,63603.0,0.00023568]
[1724536804966,0.439364,63612.0,63603.0,0.00023568]
[1724536805164,0.3608,63612.0,63603.0,0.00023568]
[1724536805364,0.078567,63610.0,63603.0,0.00023568]
[1724536805559,0.078569,63608.0,63603.0,0.00023568]
[1724536806661,0.078572,63606.0,63603.0,0.00023568]
[1724536807369,0.3608,63612.0,63603.0,0.00023568]
[1724536807370,0.078573,63605.0,63603.0,0.00023568]
[1724536809667,0.3608,63606.0,63603.0,0.00023568]
[1724536809970,0.3608,63630.0,63605.0,0.3608]
[1724536810169,0.3608,63636.0,63632.0,0.078538]
[1724536810974,0.3608,63636.0,63635.0,4e-05]
[1724536811666,0.00023568,63640.0,63635.0,0.36084]
[1724536812471,0.00023568,63640.0,63639.0,4e-05]
[1724536813380,0.00023568,63640.0,63639.0,0.47144]
[1724536813584,0.00023568,63640.0,63639.0,0.87144]
[1724536813974,0.00023568,63640.0,63639.0,0.47144]
[1724536814774,0.00023568,63640.0,63639.0,0.87144]
[1724536815982,0.3608,63670.0,63639.0,1.03753954]
[1724536816175,0.3608,63670.0,63661.0,0.3608]
[1724536816176,0.078495,63669.0,63661.0,0.3608]
[1724536816778,0.3608,63670.0,63661.0,0.3608]
[1724536816982,0.3608,63670.0,63661.0,0.53068]
[1724536817481,0.3608,63670.0,63669.0,4e-05]
[1724536819781,0.00015382,63672.0,63669.0,1.23204]
[1724536819982,0.00015382,63672.0,63669.0,0.83204]
[1724536820180,0.00015382,63672.0,63670.0,0.16984]
[1724536820579,0.00015382,63672.0,63671.0,4e-05]
[1724536820781,0.00015382,63672.0,63671.0,0.4712]
[1724536821083,0.00015382,63672.0,63671.0,0.8712]
[1724536821898,0.078477,63683.0,63671.0,0.8712]
[1724536822099,0.3608,63689.0,63678.0,0.3608]
[1724536822794,0.078472,63687.0,63678.0,0.3608]
[1724536822998,0.078432,63687.0,63678.0,0.3608]
[1724536823299,0.078432,63687.0,63677.0,0.00023568]
[1724536824091,4e-05,63678.0,63677.0,0.00023568]
[1724536825194,4e-05,63678.0,63677.0,0.16611568]
[1724536826696,4e-05,63678.0,63677.0,0.63723568]
[1724536826900,4e-05,63678.0,63677.0,0.47135568]
[1724536827097,4e-05,63678.0,63677.0,0.63723568]
[1724536827405,0.3608,63696.0,63677.0,0.68773568]
[1724536827694,0.3608,63689.0,63677.0,0.21661568]
[1724536828102,0.3608,63689.0,63682.0,0.3608]
[1724536828695,0.3608,63689.0,63688.0,4e-05]
[1724536831197,0.078476,63685.0,63678.0,0.078482]
[1724536831402,0.3608,63682.0,63678.0,0.078482]
[1724536831595,0.3608,63682.0,63677.0,0.00023568]
[1724536831798,0.078483,63679.0,63677.0,0.00023568]
[1724536831993,0.0502,63678.0,63677.0,0.00023568]
[1724536832503,0.16730544,63678.0,63669.0,0.078494]
[1724536832703,0.3608,63673.0,63669.0,0.078494]
[1724536833201,0.07635503,63675.0,63668.0,0.22]
[1724536833395,0.06108429,63672.0,63671.0,0.078492]
[1724536833598,0.3608,63682.0,63670.0,0.3608]
[1724536833807,0.3608,63682.0,63677.0,0.22]
[1724536834004,0.00023568,63678.0,63677.0,0.298485]
[1724536834406,0.00023568,63678.0,63677.0,0.769605]
[1724536834897,0.00023568,63678.0,63677.0,1.130405]
[1724536835096,0.00023568,63678.0,63677.0,0.659285]
[1724536838403,0.00023568,63678.0,63677.0,0.298485]
[1724536838604,0.00023568,63678.0,63677.0,0.659285]
[1724536839603,0.00023568,63678.0,63667.0,0.01201321]
[1724536839604,0.00023568,63678.0,63670.0,0.22]
[1724536840115,0.00023568,63678.0,63671.0,0.078493]
[1724536840499,0.00023568,63678.0,63670.0,0.22]
[1724536840814,0.3608,63673.0,63670.0,0.22]
[1724536841113,0.078487,63676.0,63670.0,0.22]
[1724536841114,0.439287,63676.0,63670.0,0.22]
[1724536841306,4e-05,63671.0,63670.0,0.22]
[1724536842608,4e-05,63671.0,63670.0,0.69116]
[1724536842916,4e-05,63671.0,63670.0,1.09116]
[1724536843118,0.00023568,63678.0,63670.0,1.09116]
[1724536843309,0.00023568,63678.0,63677.0,0.3608]
[1724536843617,0.3608,63696.0,63677.0,0.3608]
[1724536843618,0.3608,63696.0,63684.0,0.078476]
[1724536843806,0.3608,63696.0,63689.0,0.3608]
[1724536844006,0.3608,63696.0,63695.0,0.22]
[1724536844419,0.3608,63696.0,63695.0,0.22004]
[1724536844603,0.3608,63696.0,63695.0,4e-05]
[1724536845113,0.3608,63702.0,63695.0,4e-05]
[1724536845510,0.045818,63701.0,63695.0,4e-05]
[1724536847107,0.3608,63702.0,63695.0,4e-05]
[1724536847417,0.3608,63702.0,63698.0,0.22]
[1724536847920,0.3608,63702.0,63701.0,4e-05]
[1724536848917,0.406618,63711.0,63701.0,4e-05]
[1724536849115,0.3608,63711.0,63701.0,0.04687419]
[1724536849306,0.3608,63711.0,63702.0,0.04683419]
[1724536849509,0.3608,63711.0,63701.0,0.04687419]
[1724536849706,0.3608,63711.0,63710.0,4e-05]
[1724536852931,0.3608,63711.0,63710.0,0.22004]
[1724536853226,0.273,63711.0,63710.0,0.22004]
[1724536853420,0.06108429,63727.0,63710.0,0.22004]
[1724536853421,0.3608,63731.0,63726.0,0.078425]
[1724536853624,0.3608,63731.0,63727.0,0.078423]
[1724536854123,0.3608,63731.0,63730.0,4e-05]
[1724536855424,0.113,63746.0,63744.0,0.078403]
[1724536855641,0.0551,63746.0,63745.0,0.3608]
[1724536855927,0.0555,63753.0,63750.0,0.078395]
[1724536856320,0.3608,63766.0,63750.0,0.078395]
[1724536856321,0.3608,63770.0,63752.0,0.3608]
[1724536856625,0.0555,63765.0,63758.0,0.3608]
[1724536858827,0.3608,63770.0,63760.0,0.078383]
[1724536859327,0.3608,63770.0,63761.0,0.078382]
[1724536859522,0.3608,63770.0,63762.0,0.07838]
[1724536859722,0.0582,63773.0,63769.0,4e-05]
[1724536860026,0.3608,63770.0,63769.0,4e-05]
[1724536860224,0.3608,63770.0,63752.0,0.3608]
[1724536860225,0.078373,63769.0,63752.0,0.3608]
[1724536860430,0.3608,63759.0,63733.0,0.3608]
[1724536860731,0.3608,63746.0,63733.0,0.3608]
[1724536861128,4e-05,63734.0,63733.0,0.3608]
[1724536861731,0.36084,63734.0,63727.0,0.0002353]
[1724536862430,0.07842,63731.0,63727.0,0.0002353]
[1724536862632,4e-05,63728.0,63727.0,0.0002353]
[1724536865423,0.4708,63728.0,63727.0,0.0002353]
[1724536865626,4e-05,63728.0,63727.0,0.0002353]
[1724536871344,4e-05,63728.0,63727.0,0.3610353]
[1724536871838,0.00023401,63740.0,63738.0,0.07841]
[1724536872540,0.00023401,63740.0,63739.0,4e-05]
[1724536872733,0.00023401,63740.0,63739.0,0.47072]
[1724536872933,0.3608,63758.0,63739.0,1.23152]
[1724536873129,0.078391,63754.0,63747.0,0.3608]
[1724536875639,0.3608,63758.0,63750.0,0.078395]
[1724536875939,0.3608,63758.0,63747.0,0.3608]
[1724536876437,0.439186,63758.0,63757.0,4e-05]
[1724536876833,1.309706,63758.0,63757.0,4e-05]
[1724536877030,1.23132,63758.0,63744.0,0.0002353]
[1724536877237,0.3608,63747.0,63744.0,0.0002353]
[1724536877431,0.078402,63745.0,63744.0,0.0002353]
[1724536877635,0.47152,63746.0,63733.0,0.078416]
[1724536877837,0.3608,63741.0,63733.0,0.078416]
[1724536878443,0.3608,63741.0,63730.0,0.3608]
[1724536878940,0.078418,63732.0,63730.0,0.3608]
[1724536879143,0.3608,63731.0,63723.0,0.00019115]
[1724536879448,0.3608,63725.0,63723.0,0.00019115]
[1724536879952,0.4708,63724.0,63723.0,0.00019115]
[1724536880340,0.549228,63724.0,63723.0,0.00019115]
[1724536880842,0.078428,63724.0,63723.0,0.00019115]
[1724536881438,0.3608,63728.0,63723.0,0.07862015]
[1724536881834,0.3608,63728.0,63723.0,0.00019115]
[1724536882045,0.0002353,63737.0,63730.0,0.07842]
[1724536882341,0.0002353,63737.0,63731.0,0.3608]
[1724536882738,0.0002353,63737.0,63736.0,4e-05]
[1724536886446,0.078395,63751.0,63736.0,0.87072]
[1724536886648,0.078395,63751.0,63746.0,0.3608]
[1724536887148,0.078359,63748.0,63746.0,0.3608]
[1724536887538,0.4706,63747.0,63746.0,0.3608]
[1724536887940,0.8706,63747.0,63746.0,0.3608]
[1724536888544,0.078359,63748.0,63746.0,0.3608]
[1724536890044,0.045818,63750.0,63746.0,0.3608]
[1724536890338,0.0002353,63753.0,63746.0,0.3608]
[1724536890545,0.0002353,63753.0,63751.0,0.078394]
[1724536891042,0.0002353,63753.0,63752.0,4e-05]
[1724536891840,0.3608,63758.0,63757.0,0.078387]
[1724536892339,0.0543,63767.0,63757.0,0.078387]
[1724536892340,0.045818,63766.0,63760.0,0.078383]
[1724536892541,0.078373,63769.0,63765.0,0.3608]
[1724536892955,0.0538,63773.0,63766.0,0.83128]
[1724536892956,0.045818,63773.0,63766.0,0.83128]
[1724536893246,0.078363,63777.0,63772.0,0.3608]
[1724536893449,0.439157,63782.0,63772.0,0.3608]
[1724536893642,0.3608,63782.0,63772.0,0.3608]
[1724536894452,0.3608,63782.0,63781.0,4e-05]
[1724536894845,0.078351,63787.0,63781.0,0.36084]
[1724536895354,0.078356,63783.0,63781.0,0.36084]
[1724536895647,0.3608,63783.0,63775.0,0.0002353]
[1724536895848,0.078384,63760.0,63759.0,0.3608]
[1724536896050,0.07839,63755.0,63748.0,0.078398]
[1724536896450,0.078396,63750.0,63747.0,0.3608]
[1724536896844,0.078396,63750.0,63743.0,0.078404]
[1724536897451,0.3608,63752.0,63745.0,0.078401]
[1724536897742,0.078395,63751.0,63742.0,0.0002353]
[1724536898554,0.078396,63750.0,63742.0,0.0002353]
[1724536899051,0.078398,63749.0,63742.0,0.0002353]
[1724536899557,0.3608,63752.0,63742.0,0.0002353]
[1724536899558,0.078398,63748.0,63742.0,0.0002353]
[1724536901549,0.078391,63754.0,63742.0,0.0002353]
[1724536901744,0.0002353,63755.0,63748.0,0.3608]
[1724536902148,0.0002353,63755.0,63753.0,0.078391]
[1724536902351,0.0002353,63755.0,63754.0,0.3608]
[1724536902658,0.0002353,63755.0,63754.0,0.36084]
[1724536903351,0.0002353,63755.0,63754.0,0.8314]
[1724536903551,0.0002353,63755.0,63754.0,0.985]
[1724536903855,0.3608,63770.0,63754.0,1.61944962]
[1724536904048,0.3608,63770.0,63765.0,0.3608]
[1724536904256,0.3608,63770.0,63765.0,0.439177]
[1724536904657,0.3608,63770.0,63769.0,4e-05]
[1724536906452,0.078357,63782.0,63770.0,0.078371]
[1724536906648,0.078357,63782.0,63773.0,0.3608]
[1724536907261,0.078357,63782.0,63781.0,4e-05]
[1724536909559,0.0537,63783.0,63781.0,4e-05]
[1724536910364,0.0537,63783.0,63782.0,4e-05]
[1724536911052,0.406618,63791.0,63782.0,4e-05]
[1724536911253,0.078344,63793.0,63788.0,0.3608]
[1724536911760,0.0585,63796.0,63789.0,0.078348]
[1724536912155,0.3608,63799.0,63792.0,0.078344]
[1724536912456,0.3608,63799.0,63789.0,0.0002353]
[1724536912853,0.045818,63806.0,63798.0,4e-05]
[1724536913050,0.06108429,63810.0,63799.0,0.078335]
[1724536913051,0.045818,63809.0,63799.0,0.078335]
[1724536913250,0.101018,63810.0,63799.0,0.078335]
[1724536913767,0.07833,63804.0,63800.0,0.078334]
[1724536913963,0.07833,63804.0,63798.0,4.73e-06]
[1724536913964,0.06457439,63803.0,63798.0,4.73e-06]
[1724536914259,0.06457439,63803.0,63801.0,0.078333]
[1724536914465,0.02539409,63802.0,63801.0,0.078333]
[1724536914660,0.02539388,63805.0,63797.0,0.3608]
[1724536914860,0.09213997,63800.0,63797.0,0.3608]
[1724536915065,0.09213997,63801.0,63800.0,0.078334]
[1724536915262,0.02539345,63801.0,63800.0,0.078334]
[1724536916065,0.09214086,63802.0,63797.0,0.3608]
[1724536916261,0.09214086,63802.0,63790.0,0.14964]
[1724536916459,0.06137714,63791.0,63790.0,0.1496]
[1724536916761,0.078347,63790.0,63771.0,0.3608]
[1724536916962,0.078359,63780.0,63773.0,0.078367]
[1724536917160,0.3608,63784.0,63771.0,0.3608]
[1724536917353,0.078362,63778.0,63771.0,0.3608]
[1724536917665,0.078365,63775.0,63768.0,0.589573]
[1724536917856,0.439165,63775.0,63768.0,0.44020811]
[1724536918056,0.078365,63775.0,63768.0,0.44020811]
[1724536918761,0.43939268,63781.0,63774.0,0.3608]
[1724536919165,0.43939268,63781.0,63774.0,0.439166]
[1724536919573,0.00023468,63781.0,63780.0,4e-05]
[1724536920457,0.00023468,63781.0,63780.0,0.4704]
[1724536920663,0.00023468,63781.0,63780.0,0.548759]
[1724536921161,0.00023468,63781.0,63780.0,1.309559]
[1724536921368,0.0537,63796.0,63780.0,1.4667476]
[1724536921569,0.48514874,63806.0,63791.0,0.3608]
[1724536921771,0.4145,63806.0,63791.0,0.3608]
[1724536922172,0.078342,63794.0,63791.0,0.3608]
[1724536922373,0.46140174,63806.0,63792.0,0.00023511]
[1724536922562,0.07829,63804.0,63794.0,0.078341]
[1724536922768,0.078331,63803.0,63794.0,0.078341]
[1724536922972,0.078331,63803.0,63795.0,0.07834]
[1724536923278,0.078331,63803.0,63798.0,0.3608]
[1724536923666,0.3608,63800.0,63792.0,0.00023511]
[1724536923863,0.078343,63793.0,63792.0,0.00023511]
[1724536924267,0.548623,63793.0,63792.0,0.00023511]
[1724536924572,0.36176,63794.0,63792.0,0.00023511]
[1724536924774,0.3608,63800.0,63792.0,0.00023511]
[1724536924775,0.00088,63800.0,63792.0,0.36103511]
[1724536924983,0.46052174,63806.0,63792.0,0.36103511]
[1724536925269,0.46052174,63806.0,63792.0,0.00023511]
[1724536925270,0.3608,63793.0,63792.0,0.00023511]
[1724536925463,0.078352,63786.0,63785.0,0.3608]
[1724536925667,0.078352,63786.0,63773.0,0.079167]
[1724536925668,0.3608,63786.0,63773.0,0.079167]
[1724536925868,0.0534,63785.0,63773.0,0.0008]
[1724536926066,0.0534,63785.0,63776.0,0.078364]
[1724536926266,0.0534,63785.0,63772.0,0.1496]
[1724536926267,0.078363,63777.0,63772.0,0.1496]
[1724536926464,0.078364,63777.0,63772.0,0.1496]
[1724536926870,0.00023511,63781.0,63772.0,0.1496]
[1724536926871,0.3608,63778.0,63772.0,0.1496]
[1724536927072,0.078367,63774.0,63772.0,0.1496]
[1724536927376,0.3608,63778.0,63769.0,0.00017599]
[1724536927377,0.078363,63777.0,63769.0,0.00017599]
[1724536927974,0.3608,63778.0,63769.0,0.00017599]
[1724536928173,0.3608,63778.0,63776.0,4e-05]
[1724536928475,0.04602174,63788.0,63776.0,4e-05]
[1724536928476,0.40682174,63796.0,63777.0,0.23638492]
[1724536928675,0.078341,63795.0,63787.0,0.07835]
[1724536929073,0.3608,63797.0,63782.0,0.3608]
[1724536929269,0.0553,63802.0,63782.0,0.3608]
[1724536929270,0.3608,63791.0,63782.0,0.3608]
[1724536929473,0.078354,63784.0,63782.0,0.3608]
[1724536929674,0.078356,63782.0,63780.0,0.00023511]
[1724536930078,0.47036,63781.0,63780.0,0.00023511]
[1724536930580,1.23116,63781.0,63780.0,0.00023511]
[1724536930969,0.3608,63781.0,63780.0,0.00023511]
[1724536931578,0.83116,63781.0,63776.0,4e-05]
[1724536931772,0.0461341,63780.0,63776.0,4e-05]
[1724536932271,0.0461341,63779.0,63776.0,4e-05]
[1724536932876,0.078363,63777.0,63776.0,4e-05]
[1724536933269,0.53176037,63777.0,63760.0,0.078383]
[1724536933470,0.078376,63766.0,63761.0,0.078382]
[1724536933670,0.078369,63772.0,63759.0,0.3608]
[1724536934076,0.3608,63773.0,63764.0,0.078378]
[1724536934279,0.00012473,63772.0,63764.0,0.078378]
[1724536935078,0.00012473,63772.0,63762.0,0.00023511]
[1724536936281,0.00012473,63772.0,63770.0,0.07837]
[1724536937482,0.00012473,63772.0,63771.0,0.07837]
[1724536938382,0.40697127,63787.0,63786.0,0.078352]
[1724536938579,0.3608,63787.0,63786.0,0.078352]
[1724536939180,0.3608,63787.0,63786.0,0.078392]
[1724536939392,0.36085126,63787.0,63786.0,0.078392]
[1724536939589,0.36085126,63787.0,63786.0,4e-05]
[1724536941783,1.30952126,63787.0,63780.0,0.00023511]
[1724536941983,0.3608,63781.0,63769.0,0.3608]
[1724536942186,0.3608,63781.0,63763.0,0.046671]
[1724536942187,0.3608,63772.0,63763.0,0.046671]
[1724536942393,0.3608,63772.0,63762.0,0.3608]
[1724536942394,0.078374,63768.0,63762.0,0.3608]
[1724536942691,5.126e-05,63771.0,63763.0,0.07838]
[1724536943188,5.126e-05,63771.0,63762.0,0.3608]
[1724536943498,5.126e-05,63771.0,63770.0,0.3608]
[1724536943788,0.04620806,63785.0,63771.0,0.47044]
[1724536943995,0.40700806,63787.0,63783.0,0.078355]
[1724536944184,0.40700806,63787.0,63778.0,0.3608]
[1724536944185,0.3608,63787.0,63784.0,0.078354]
[1724536945389,0.3608,63787.0,63779.0,0.00023511]
[1724536946301,0.3608,63787.0,63780.0,0.078359]
[1724536946489,0.3608,63787.0,63779.0,0.00023511]
[1724536946490,0.078359,63780.0,63779.0,0.00023511]
[1724536946689,0.12456706,63780.0,63779.0,0.00023511]
[1724536946886,0.078359,63780.0,63779.0,0.00023511]
[1724536947293,0.3608,63781.0,63779.0,0.00023511]
[1724536947498,0.06136037,63783.0,63779.0,0.00023511]
[1724536947688,0.3608,63780.0,63779.0,0.00023511]
[1724536947889,0.40705128,63780.0,63779.0,0.00023511]
[1724536948296,0.439159,63780.0,63779.0,0.00023511]
[1724536949592,0.439159,63780.0,63767.0,0.3608]
[1724536949593,0.078364,63777.0,63767.0,0.3608]
[1724536949804,0.078364,63777.0,63768.0,0.078374]
[1724536949805,0.078364,63776.0,63768.0,0.078374]
[1724536950002,0.3608,63771.0,63759.0,0.046671]
[1724536950189,0.3608,63763.0,63756.0,0.125059]
[1724536950391,0.3608,63763.0,63756.0,0.078388]
[1724536951405,0.3608,63763.0,63753.0,0.36103511]
[1724536951801,0.078381,63762.0,63753.0,0.36103511]
[1724536954098,0.3608,63763.0,63753.0,0.36103511]
[1724536954301,0.04624685,63764.0,63759.0,0.3608]
[1724536954516,0.00023511,63766.0,63759.0,0.3608]
[1724536955306,0.00023511,63766.0,63765.0,4e-05]
[1724536956009,0.00023511,63766.0,63765.0,0.36084]
[1724536956310,0.00023511,63766.0,63765.0,4e-05]
[1724536958905,0.00023511,63766.0,63765.0,0.909697]
[1724536960407,0.00023511,63766.0,63765.0,0.439217]
[1724536964322,0.07861111,63766.0,63765.0,0.36084]
[1724536964621,0.07861111,63766.0,63765.0,4e-05]
[1724536964622,0.34861111,63766.0,63765.0,4e-05]
[1724536964810,0.39485796,63766.0,63765.0,4e-05]
[1724536965017,0.00023511,63766.0,63765.0,4e-05]
[1724536966617,0.00023511,63766.0,63765.0,0.078417]
[1724536966819,0.04625258,63776.0,63770.0,0.07837]
[1724536967019,0.81430622,63786.0,63770.0,0.07837]
[1724536967020,0.04625258,63777.0,63770.0,0.07837]
[1724536967316,0.04625258,63778.0,63770.0,0.07837]
[1724536967813,0.04625258,63778.0,63768.0,0.00023511]
[1724536968317,0.04625258,63778.0,63777.0,4e-05]
[1724536969517,0.078361,63778.0,63777.0,4e-05]
[1724536970230,0.13972137,63778.0,63777.0,4e-05]
[1724536970427,0.078361,63778.0,63777.0,4e-05]
[1724536970633,0.13972137,63778.0,63777.0,4e-05]
[1724536971123,0.06136037,63778.0,63777.0,4e-05]
[1724536971327,0.13972037,63779.0,63777.0,4e-05]
[1724536972117,0.13972037,63779.0,63778.0,4e-05]
[1724536972926,0.07836,63779.0,63778.0,4e-05]
[1724536974126,0.12465744,63779.0,63778.0,4e-05]
[1724536974526,0.07836,63779.0,63778.0,4e-05]
[1724536974919,0.13972037,63779.0,63778.0,4e-05]
[1724536975629,0.00023511,63780.0,63778.0,0.078401]
[1724536975831,0.00023511,63780.0,63779.0,0.07836]
[1724536976422,0.00023511,63780.0,63779.0,0.0784]
[1724536976921,0.008827,63780.0,63779.0,0.0784]
[1724536977733,0.008827,63780.0,63779.0,0.94876]
[1724536979734,0.008827,63780.0,63779.0,1.00506]
[1724536979926,0.008827,63780.0,63779.0,1.10696183]
[1724536980331,0.04632316,63790.0,63779.0,1.42086]
[1724536980534,0.04632316,63794.0,63788.0,0.3608]
[1724536980735,0.04632316,63796.0,63788.0,0.3608]
[1724536980934,0.10222316,63797.0,63794.0,0.3608]
[1724536981431,0.0559,63797.0,63794.0,0.3608]
[1724536981739,0.078347,63790.0,63789.0,0.00023511]
[1724536982033,0.078307,63790.0,63789.0,0.00023511]
[1724536982429,0.078347,63790.0,63789.0,0.00023511]
[1724536982625,4e-05,63790.0,63789.0,0.00023511]
[1724536982837,0.04629794,63790.0,63789.0,0.00023511]
[1724536983230,4e-05,63790.0,63789.0,0.00023511]
[1724536984929,4e-05,63790.0,63789.0,0.07858311]
[1724536987127,0.07720527,63796.0,63789.0,0.96076438]
[1724536987333,0.06164677,63796.0,63795.0,0.439141]
[1724536987741,0.06164677,63797.0,63796.0,0.078339]
[1724536988342,0.06164677,63797.0,63795.0,0.36084]
[1724536988343,0.06164677,63798.0,63797.0,0.078338]
[1724536988641,0.06163812,63798.0,63797.0,0.078338]
[1724536989036,0.06163812,63798.0,63797.0,0.078378]
[1724536989234,0.06163812,63799.0,63798.0,0.078337]
[1724536989436,0.06163812,63799.0,63797.0,4e-05]
[1724536989437,0.43800527,63804.0,63797.0,4e-05]
[1724536989636,0.06163665,63798.0,63797.0,0.078378]
[1724536990137,0.06163665,63799.0,63798.0,0.078337]
[1724536990940,0.06163665,63799.0,63798.0,0.439177]
[1724536991345,0.0562,63807.0,63800.0,0.078334]
[1724536992140,0.0562,63807.0,63806.0,4e-05]
[1724536992537,0.134526,63807.0,63806.0,4e-05]
[1724536993039,0.604686,63807.0,63806.0,4e-05]
[1724536993341,1.05089859,63807.0,63806.0,4e-05]
[1724536993531,0.52636,63807.0,63792.0,0.078344]
[1724536993731,0.5808,63802.0,63792.0,0.078344]
[1724536993943,0.078336,63799.0,63790.0,0.3608]
[1724536994133,0.22,63802.0,63796.0,0.3608]
[1724536994335,0.00088,63802.0,63801.0,0.078333]
[1724536994730,0.0562,63807.0,63801.0,0.078333]
[1724536994948,0.0562,63807.0,63796.0,0.3608]
[1724536995245,0.0562,63807.0,63804.0,0.078329]
[1724536997035,0.0562,63807.0,63804.0,0.07754456]
[1724536997237,0.0562,63807.0,63806.0,0.078327]
[1724536997942,0.0562,63807.0,63798.0,0.3608]
[1724536998847,0.0562,63807.0,63802.0,0.078331]
[1724536999053,0.0562,63807.0,63805.0,0.3608]